fUST/lending_fUST_20251210
["ID","MTS","AMOUNT","RATE_DAILY","PERIOD"]
[398021481,1765296648281,-1000.0,0.00013821,2]
[398021482,1765296648292,-1000.0,0.00013821,2]
[398021483,1765296648304,-151.0,0.00013836,2]
[398021484,1765296648316,-250.0,0.00014046,3]
[398021485,1765296648326,-259.25,0.00014148,2]
[398021486,1765296648336,-533.88981491,0.00014148,2]
[398021487,1765296648346,-400.0,0.00014148,2]
[398021488,1765296648356,-2579.17784983,0.00014148,2]
[398021489,1765296648366,-2922.75254141,0.00014148,2]
[398021490,1765296648375,-301.0,0.00014164,3]
[398021491,1765296648386,-415.0,0.00014171,2]
[398021492,1765296648395,-250.0,0.00014191,3]
[398021493,1765296648405,-151.0,0.000142,2]
[398021494,1765296648415,-600.0,0.00014221,2]
[398021495,1765296648424,-1000.0,0.00014239,2]
[398021496,1765296648434,-492.0,0.00014239,2]
[398021497,1765296648443,-500.0,0.00014247,2]
[398021498,1765296648453,-711.62130532,0.00014247,2]
[398021499,1765296648462,-1000.0,0.00014247,2]
[398021500,1765296648473,-1000.29407758,0.00014247,2]
[398021501,1765296648483,-1000.0,0.00014247,2]
[398021502,1765296648493,-1000.0,0.00014247,2]
[398021503,1765296648503,-1000.0,0.00014247,2]
[398021504,1765296648512,-260.0,0.00014247,2]
[398021505,1765296648522,-500.0,0.00014279,2]
[398021506,1765296648531,-1500.0,0.00014368,2]
[398021507,1765296648540,-1500.0,0.00014368,2]
[398021508,1765296648550,-1500.0,0.00014368,2]
[398021509,1765296648559,-1500.0,0.00014368,2]
[398021510,1765296648569,-151.0,0.00014384,2]
[398021511,1765296648578,-500.0,0.00014412,2]
[398021512,1765296648588,-800.0,0.00014577,2]
[398021513,1765296648598,-156.57217215,0.00014584,2]
[398021514,1765296648607,-581.64654891,0.0001465,2]
[398021515,1765296648616,-2469.84848251,0.00014665,2]
[398021516,1765296648626,-500.0,0.00014684,2]
[398021517,1765296648635,-151.0,0.00014684,2]
[398021518,1765296648644,-297.07063086,0.00014684,2]
[398021519,1765296648655,-151.0,0.00014684,2]
[398021520,1765296648664,-151.0,0.00014684,2]
[398021521,1765296648674,-151.0,0.00014684,2]
[398021522,1765296648684,-151.0,0.00014684,2]
[398021523,1765296648695,-151.0,0.00014684,2]
[398021524,1765296648705,-151.60996163,0.00014684,2]
[398021525,1765296648715,-500.0,0.00014684,2]
[398021526,1765296648724,-210.49462607,0.00014684,2]
[398021527,1765296648734,-151.41031044,0.00014684,2]
[398021528,1765296648743,-151.0,0.00014684,2]
[398021529,1765296648753,-151.0,0.00014684,2]
[398021530,1765296648763,-12537.4863892,0.00014688,2]
[398021531,1765296648772,-800.0,0.00014694,2]
[398021532,1765296648782,-553.64373807,0.00014696,2]
[398021533,1765296648791,-400.0,0.00014696,2]
[398021534,1765296648802,-2674.60743027,0.00014696,2]
[398021535,1765296648811,-800.0,0.00014721,2]
[398021536,1765296648820,-900.0,0.00014768,2]
[398021537,1765296648829,-500.0,0.00014795,2]
[398021538,1765296648840,-1500.0,0.00014795,2]
[398021539,1765296648850,-1500.0,0.00014795,2]
[398021540,1765296648861,-1000.0,0.00014795,2]
[398021541,1765296648871,-1500.0,0.00014795,2]
[398021542,1765296648880,-360.0,0.00014795,2]
[398021543,1765296648889,-500.0,0.00014821,2]
[398021544,1765296648899,-151.0,0.00014821,2]
[398021545,1765296648909,-151.0,0.00014821,2]
[398021546,1765296648919,-151.0,0.00014821,2]
[398021547,1765296648928,-151.0,0.00014821,2]
[398021548,1765296648938,-500.0,0.00014821,2]
[398021549,1765296648947,-151.0,0.00014821,2]
[398021550,1765296648957,-151.0,0.00014821,2]
[398021551,1765296648967,-800.0,0.00014867,2]
[398021552,1765296648976,-250.0,0.00014915,2]
[398021553,1765296648987,-2000.0,0.00014916,2]
[398021554,1765296648998,-2000.0,0.00014916,2]
[398021555,1765296649007,-2000.0,0.00014916,2]
[398021556,1765296649018,-2000.0,0.00014916,2]
[398021557,1765296649028,-500.0,0.00014923,2]
[398021558,1765296649037,-151.0,0.00014932,2]
[398021559,1765296649047,-500.0,0.00014958,2]
[398021560,1765296649057,-197.0,0.00014958,2]
[398021561,1765296649067,-198.0,0.00014958,2]
[398021562,1765296649076,-198.0,0.00014958,2]
[398021563,1765296649086,-198.0,0.00014958,2]
[398021564,1765296649095,-500.0,0.00014958,2]
[398021565,1765296649104,-151.0,0.00014958,2]
[398021566,1765296649113,-250.0,0.00014999,3]
[398021567,1765296649123,-11256.54393506,0.00015,10]
[398021568,1765296649132,-625.0,0.00015,10]
[398021569,1765296649141,-151.0,0.00015,2]
[398021570,1765296649150,-5643.0,0.00015,2]
[398021571,1765296649162,-443.74435,0.00015068,2]
[398021572,1765296649171,-500.0,0.00015095,2]
[398021573,1765296649180,-194.34988413,0.00015095,2]
[398021574,1765296649190,-151.0,0.00015095,2]
[398021575,1765296649199,-625.0,0.00015137,10]
[398021576,1765296649209,-500.0,0.00015232,2]
[398021577,1765296649219,-236.74560197,0.00015232,2]
[398021578,1765296649235,-574.12855637,0.00015244,2]
[398021579,1765296649246,-400.0,0.00015244,2]
[398021580,1765296649255,-2773.56790519,0.00015244,2]
[398021581,1765296649265,-625.0,0.00015274,10]
[398021582,1765296649275,-773.0,0.000153,2]
[398021583,1765296649284,-1200.0,0.00015316,2]
[398021584,1765296649295,-460.0,0.00015342,2]
[398021585,1765296649308,-500.0,0.00015342,2]
[398021586,1765296649318,-2000.0,0.00015342,2]
[398021587,1765296649327,-2000.0,0.00015342,2]
[398021588,1765296649339,-701.1488325,0.00015342,2]
[398021589,1765296649348,-10000.0,0.00015364,2]
[398021590,1765296649359,-500.0,0.00015369,2]
[398021591,1765296649369,-625.0,0.00015411,10]
[398021592,1765296649379,-1325.8419924,0.00015464,2]
[398021593,1765296649391,-2500.0,0.00015464,2]
[398021594,1765296649401,-2500.0,0.00015464,2]
[398021595,1765296649411,-2500.0,0.00015464,2]
[398021596,1765296649421,-151.0,0.0001548,2]
[398021597,1765296649430,-500.0,0.00015506,2]
[398021598,1765296649440,-268.84225,0.00015517,2]
[398021599,1765296649449,-625.0,0.00015548,10]
[398021600,1765296649459,-500.0,0.00015643,2]
[398021601,1765296649468,-1000.0,0.00015663,2]
[398021602,1765296649478,-791.0,0.00015663,2]
[398021603,1765296649487,-625.0,0.00015685,10]
[398021604,1765296649499,-500.0,0.00015694,2]
[398021605,1765296649508,-578.42324439,0.00015768,2]
[398021606,1765296649518,-500.0,0.0001578,2]
[398021607,1765296649527,-595.37131296,0.00015792,2]
[398021608,1765296649537,-400.0,0.00015792,2]
[398021609,1765296649547,-2876.18991768,0.00015792,2]
[398021610,1765296649556,-151.0,0.000158,2]
[398021611,1765296649567,-184.0,0.00015808,3]
[398021612,1765296649576,-500.0,0.00015813,2]
[398021613,1765296649586,-625.0,0.00015822,10]
[398021614,1765296649595,-1500.0,0.00015864,2]
[398021615,1765296649605,-501.57961673,0.00015875,2]
[398021616,1765296649615,-560.0,0.0001589,2]
[398021617,1765296649625,-500.0,0.0001589,2]
[398021618,1765296649634,-2500.0,0.0001589,2]
[398021619,1765296649644,-2500.0,0.0001589,2]
[398021620,1765296649653,-303.12575894,0.00015917,2]
[398021621,1765296649663,-625.0,0.00015959,10]
[398021622,1765296649673,-150.0,0.00016,2]
[398021623,1765296649683,-3000.0,0.00016012,2]
[398021624,1765296649693,-3000.0,0.00016012,2]
[398021625,1765296649702,-3000.0,0.00016012,2]
[398021626,1765296649712,-151.0,0.00016028,2]
[398021627,1765296649722,-625.0,0.00016096,10]
[398021628,1765296649731,-625.0,0.00016233,10]
[398021629,1765296649741,-617.40005154,0.0001634,2]
[398021630,1765296649751,-400.0,0.0001634,2]
[398021631,1765296649760,-2982.60894464,0.0001634,2]
[398021632,1765296649770,-625.0,0.0001637,10]
[398021633,1765296649780,-1546.2868003,0.00016412,2]
[398021634,1765296649790,-660.0,0.00016438,2]
[398021635,1765296649799,-500.0,0.00016438,2]
[398021636,1765296649810,-3000.0,0.00016438,2]
[398021637,1765296649819,-2450.37216057,0.00016438,2]
[398021638,1765296649829,-20367.22523644,0.00016465,2]
[398021639,1765296649838,-625.0,0.00016507,10]
[398021640,1765296649848,-3500.0,0.0001656,2]
[398021641,1765296649858,-3500.0,0.0001656,2]
[398021642,1765296649868,-3500.0,0.0001656,2]
[398021643,1765296649878,-2797.4913459,0.0001657,2]
[398021644,1765296649887,-151.0,0.000166,2]
[398021645,1765296649897,-625.0,0.00016644,10]
[398021646,1765296649907,-642.51653658,0.0001665,2]
[398021647,1765296649916,-577.0,0.00016651,2]
[398021648,1765296649926,-625.0,0.00016781,10]
[398021649,1765296649936,-287.26164611,0.00016886,2]
[398021650,1765296649946,-640.24385345,0.00016888,2]
[398021651,1765296649957,-400.0,0.00016888,2]
[398021652,1765296649967,-3092.96547559,0.00016888,2]
[398021653,1765296649978,-625.0,0.00016918,10]
[398021654,1765296649988,-760.0,0.00016986,2]
[398021655,1765296650002,-3500.0,0.00016986,2]
[398021656,1765296650013,-500.0,0.00016986,2]
[398021657,1765296650023,-624.204692,0.0001699,2]
[398021658,1765296650034,-625.0,0.00017055,10]
[398021659,1765296650044,-4000.0,0.00017108,2]
[398021660,1765296650055,-4000.0,0.00017108,2]
[398021661,1765296650064,-4000.0,0.00017108,2]
[398021662,1765296650074,-415.0,0.00017171,2]
[398021663,1765296650084,-625.0,0.00017192,10]
[398021664,1765296650094,-1000.0,0.00017229,2]
[398021665,1765296650103,-1000.0,0.00017229,2]
[398021666,1765296650113,-625.0,0.00017329,10]
[398021667,1765296650123,-1000.0,0.00017343,5]
[398021668,1765296650132,-151.0,0.000174,2]
[398021669,1765296650144,-5888.0,0.00017426,2]
[398021670,1765296650154,-5888.0,0.00017429,2]
[398021671,1765296650164,-663.93287602,0.00017436,2]
[398021672,1765296650174,-400.0,0.00017436,2]
[398021673,1765296650184,-186.0,0.00017452,3]
[398021674,1765296650194,-625.0,0.00017466,10]
[398021675,1765296650203,-5888.0,0.00017511,2]
[398021676,1765296650213,-160.29248388,0.00017534,2]
[398021677,1765296650223,-168.17893285,0.00017534,2]
[398021678,1765296650233,-302.72207914,0.00017534,2]
[398021679,1765296650244,-492.1634669,0.00017534,2]
[398021680,1765296650254,-885.89424042,0.00017534,2]
[398021681,1765296650264,-462.19898982,0.00017534,2]
[398021682,1765296650275,-273.75204041,0.00017534,2]
[398021683,1765296650286,-492.75367273,0.00017534,2]
[398021684,1765296650297,-628.82565439,0.00017534,2]
[398021685,1765296650310,-1131.8861779,0.00017534,2]
[398021686,1765296650321,-2012.24209404,0.00017534,2]
[398021687,1765296650330,-860.0,0.00017534,2]
[398021688,1765296650341,-4000.0,0.00017534,2]
[398021689,1765296650352,-500.0,0.00017534,2]
[398021690,1765296650362,-5888.0,0.00017593,2]
[398021691,1765296650371,-625.0,0.00017603,10]
[398021692,1765296650382,-5888.0,0.00017611,2]
[398021693,1765296650393,-5888.0,0.00017621,2]
[398021694,1765296650403,-150.0,0.00017638,30]
[398021695,1765296650413,-4500.0,0.00017656,2]
[398021696,1765296650423,-4500.0,0.00017656,2]
[398021697,1765296650433,-4500.0,0.00017656,2]
[398021698,1765296650442,-5888.0,0.00017712,2]
[398021699,1765296650452,-625.0,0.0001774,10]
[398021700,1765296650461,-5888.0,0.00017748,2]
[398021701,1765296650471,-151.0,0.000178,2]
[398021702,1765296650481,-151.0,0.000178,2]
[398021703,1765296650491,-151.0,0.000178,2]
[398021704,1765296650502,-151.0,0.000178,2]
[398021705,1765296650512,-151.0,0.000178,2]
[398021706,1765296650522,-151.0,0.000178,2]
[398021707,1765296650532,-151.0,0.000178,2]
[398021708,1765296650541,-151.0,0.000178,2]
[398021709,1765296650550,-151.0,0.000178,2]
[398021710,1765296650560,-151.0,0.000178,2]
[398021711,1765296650570,-151.0,0.000178,2]
[398021712,1765296650580,-151.0,0.000178,2]
[398021713,1765296650589,-196.779796,0.000178,2]
[398021714,1765296650599,-151.0,0.000178,2]
[398021715,1765296650610,-176.812868,0.000178,2]
[398021716,1765296650620,-176.812868,0.000178,2]
[398021717,1765296650630,-176.812868,0.000178,2]
[398021718,1765296650640,-176.812868,0.000178,2]
[398021719,1765296650650,-151.0,0.000178,2]
[398021720,1765296650661,-245.886075,0.000178,2]
[398021721,1765296650671,-151.0,0.000178,2]
[398021722,1765296650682,-151.0,0.000178,2]
[398021723,1765296650690,-151.0,0.000178,2]
[398021724,1765296650700,-151.0,0.000178,2]
[398021725,1765296650709,-151.0,0.000178,2]
[398021726,1765296650718,-151.0,0.000178,2]
[398021727,1765296650728,-151.0,0.000178,2]
[398021728,1765296650737,-151.0,0.000178,2]
[398021729,1765296650748,-151.0,0.000178,2]
[398021730,1765296650758,-214285.72,0.000178,3]
[398021731,1765296650770,-151.0,0.000178,2]
[398021732,1765296650781,-1525.504505,0.000178,2]
[398021733,1765296650793,-1525.504505,0.000178,2]
[398021734,1765296650803,-1525.504505,0.000178,2]
[398021735,1765296650815,-625.0,0.00017877,10]
[398021736,1765296650826,-5888.0,0.0001796,2]
[398021737,1765296650836,-5888.0,0.00017963,2]
[398021738,1765296650846,-688.49839244,0.00017984,2]
[398021739,1765296650858,-400.0,0.00017984,2]
[398021740,1765296650869,-651.39044378,0.00018,2]
[398021741,1765296650879,-500.0,0.00018,7]
[398021742,1765296650890,-500.0,0.00018,7]
[398021743,1765296650900,-500.0,0.00018,7]
[398021744,1765296650911,-500.0,0.00018,7]
[398021745,1765296650921,-500.0,0.00018,7]
[398021746,1765296650931,-500.0,0.00018,7]
[398021747,1765296650941,-500.0,0.00018,7]
[398021748,1765296650951,-500.0,0.00018,7]
[398021749,1765296650962,-500.0,0.00018,7]
[398021750,1765296650973,-500.0,0.00018,7]
[398021751,1765296650983,-500.0,0.00018,7]
[398021752,1765296650995,-500.0,0.00018,7]
[398021753,1765296651006,-500.0,0.00018,7]
[398021754,1765296651017,-500.0,0.00018,7]
[398021755,1765296651026,-514.08,0.00018,7]
[398021756,1765296651036,-500.0,0.00018,7]
[398021757,1765296651047,-500.0,0.00018,7]
[398021758,1765296651057,-500.0,0.00018,7]
[398021759,1765296651067,-500.0,0.00018,7]
[398021760,1765296651078,-500.0,0.00018,7]
[398021761,1765296651091,-500.0,0.00018,7]
[398021762,1765296651103,-500.0,0.00018,7]
[398021763,1765296651115,-500.0,0.00018,7]
[398021764,1765296651127,-500.0,0.00018,7]
[398021765,1765296651137,-500.0,0.00018,7]
[398021766,1765296651147,-500.0,0.00018,7]
[398021767,1765296651158,-500.0,0.00018,7]
[398021768,1765296651169,-500.0,0.00018,7]
[398021769,1765296651180,-500.0,0.00018,7]
[398021770,1765296651191,-500.0,0.00018,7]
[398021771,1765296651202,-500.0,0.00018,7]
[398021772,1765296651212,-500.0,0.00018,7]
[398021773,1765296651222,-500.0,0.00018,7]
[398021774,1765296651232,-500.0,0.00018,7]
[398021775,1765296651243,-500.0,0.00018,7]
[398021776,1765296651254,-500.0,0.00018,7]
[398021777,1765296651264,-500.0,0.00018,7]
[398021778,1765296651274,-500.0,0.00018,7]
[398021779,1765296651284,-500.0,0.00018,7]
[398021780,1765296651296,-500.0,0.00018,7]
[398021781,1765296651311,-500.0,0.00018,7]
[398021782,1765296651321,-500.0,0.00018,7]
[398021783,1765296651332,-500.0,0.00018,7]
[398021784,1765296651344,-625.0,0.00018014,10]
[398021785,1765296651354,-5888.0,0.00018043,2]
[398021786,1765296651365,-5888.0,0.0001808,2]
[398021787,1765296651377,-960.0,0.00018082,2]
[398021788,1765296651389,-4500.0,0.00018082,2]
[398021789,1765296651399,-500.0,0.00018082,2]
[398021790,1765296651410,-475.0,0.000181,2]
[398021791,1765296651420,-475.0,0.000181,2]
[398021792,1765296651432,-475.0,0.000181,2]
[398021793,1765296651444,-475.0,0.000181,2]
[398021794,1765296651455,-475.0,0.000181,2]
[398021795,1765296651466,-475.0,0.000181,2]
[398021796,1765296651477,-475.0,0.000181,2]
[398021797,1765296651488,-475.0,0.000181,2]
[398021798,1765296651499,-475.0,0.000181,2]
[398021799,1765296651511,-475.0,0.000181,2]
[398021800,1765296651523,-475.0,0.000181,2]
[398021801,1765296651536,-475.0,0.000181,2]
[398021802,1765296651547,-475.0,0.000181,2]
[398021803,1765296651560,-475.0,0.000181,2]
[398021804,1765296651572,-475.0,0.000181,2]
[398021805,1765296651584,-475.0,0.000181,2]
[398021806,1765296651595,-475.0,0.000181,2]
[398021807,1765296651607,-475.0,0.000181,2]
[398021808,1765296651618,-475.0,0.000181,2]
[398021809,1765296651628,-475.0,0.000181,2]
[398021810,1765296651639,-475.0,0.000181,2]
[398021811,1765296651651,-5888.0,0.00018102,2]
[398021812,1765296651662,-2000.0,0.0001814,7]
[398021813,1765296651672,-625.0,0.00018151,10]
[398021814,1765296651682,-151.0,0.000182,2]
[398021815,1765296651696,-3805.19123052,0.00018204,2]
[398021816,1765296651707,-5000.0,0.00018204,2]
[398021817,1765296651717,-3777.53962432,0.00018204,2]
[398021818,1765296651728,-600.0,0.0001824,2]
[398021819,1765296651738,-360.34786232,0.00018289,3]
[398021820,1765296651749,-221.37887575,0.00018289,3]
[398021821,1765296651761,-355.10154601,0.00018289,3]
[398021822,1765296651772,-5888.0,0.0001841,2]
[398021823,1765296651783,-151.0,0.0001841,2]
[398021824,1765296651795,-218.583861,0.0001841,2]
[398021825,1765296651807,-218.583861,0.0001841,2]
[398021826,1765296651819,-218.583861,0.0001841,2]
[398021827,1765296651829,-218.583861,0.0001841,2]
[398021828,1765296651839,-600.0,0.0001843,2]
[398021829,1765296651849,-5888.0,0.00018437,2]
[398021830,1765296651859,-443.74435,0.00018493,2]
[398021831,1765296651870,-475.0,0.000185,2]
[398021832,1765296651880,-5888.0,0.00018503,2]
[398021833,1765296651890,-5888.0,0.0001852,2]
[398021834,1765296651901,-713.97283296,0.00018532,2]
[398021835,1765296651911,-1646.17953682,0.0001862,2]
[398021836,1765296651921,-600.0,0.0001862,2]
[398021837,1765296651933,-1060.0,0.0001863,2]
[398021838,1765296651943,-186.10269251,0.0001863,2]
[398021839,1765296651954,-500.0,0.0001863,2]
[398021840,1765296651965,-406.016222,0.00018642,2]
[398021841,1765296651975,-406.016222,0.00018642,2]
[398021842,1765296651986,-406.016222,0.00018642,2]
[398021843,1765296651998,-406.016222,0.00018642,2]
[398021844,1765296652009,-5888.0,0.00018642,2]
[398021845,1765296652020,-703.38652426,0.0001865,2]
[398021846,1765296652255,-5888.0,0.00018695,2]
[398021847,1765296652267,-5888.0,0.00018698,2]
[398021848,1765296652278,-151.0,0.000187,2]
[398021849,1765296652288,-151.0,0.000187,2]
[398021850,1765296652299,-151.0,0.000187,2]
[398021851,1765296652311,-151.0,0.000187,2]
[398021852,1765296652322,-151.0,0.000187,2]
[398021853,1765296652332,-151.0,0.000187,2]
[398021854,1765296652342,-151.0,0.000187,2]
[398021855,1765296652354,-151.0,0.000187,2]
[398021856,1765296652364,-151.0,0.000187,2]
[398021857,1765296652378,-151.0,0.000187,2]
[398021858,1765296652389,-151.0,0.000187,2]
[398021859,1765296652400,-151.0,0.000187,2]
[398021860,1765296652410,-151.0,0.000187,2]
[398021861,1765296652420,-575.139068,0.000187,2]
[398021862,1765296652431,-575.139068,0.000187,2]
[398021863,1765296652441,-575.139068,0.000187,2]
[398021864,1765296652451,-575.139068,0.000187,2]
[398021865,1765296652461,-151.0,0.000187,2]
[398021866,1765296652472,-201.363463,0.000187,2]
[398021867,1765296652483,-201.363463,0.000187,2]
[398021868,1765296652494,-201.363463,0.000187,2]
[398021869,1765296652505,-201.363463,0.000187,2]
[398021870,1765296652515,-833.722141,0.000187,2]
[398021871,1765296652526,-833.722141,0.000187,2]
[398021872,1765296652536,-833.722141,0.000187,2]
[398021873,1765296652546,-833.722141,0.000187,2]
[398021874,1765296652556,-166.77,0.000187,2]
[398021875,1765296652567,-35714.28,0.000187,3]
[398021876,1765296652577,-475.0,0.0001874,2]
[398021877,1765296652587,-475.0,0.0001874,2]
[398021878,1765296652598,-5500.0,0.00018752,2]
[398021879,1765296652608,-5888.0,0.00018758,2]
[398021880,1765296652618,-475.0,0.00018802,2]
[398021881,1765296652629,-475.0,0.00018802,2]
[398021882,1765296652639,-5888.0,0.00018805,2]
[398021883,1765296652649,-5888.0,0.00018809,2]
[398021884,1765296652660,-600.0,0.0001881,2]
[398021885,1765296652670,-5888.0,0.00018885,2]
[398021886,1765296652680,-302.78807257,0.000189,2]
[398021887,1765296652690,-475.0,0.00018944,2]
[398021888,1765296652700,-475.0,0.00018944,2]
[398021889,1765296652711,-1000.0,0.00018952,10]
[398021890,1765296652721,-1000.0,0.00018952,10]
[398021891,1765296652731,-579.0,0.00018952,10]
[398021892,1765296652745,-9096.78257519,0.00019,2]
[398021893,1765296652754,-3900.0,0.00019,2]
[398021894,1765296652765,-31500.0,0.00019,2]
[398021895,1765296652775,-10698.0,0.00019,2]
[398021896,1765296652786,-21362.66800543,0.00019,2]
[398021897,1765296652796,-169.56182099,0.00019,2]
[398021898,1765296652806,-182528.06684633,0.00019,2]
[398021899,1765296652815,-217384.63987846,0.00019,2]
[398021900,1765296652870,-321676.83170416,0.00019,2]
[398021901,1765296652881,-151.0,0.00019,2]
[398021902,1765296652891,-151.0,0.00019,2]
[398021903,1765296652901,-151.0,0.00019,2]
[398021904,1765296652911,-151.0,0.00019,2]
[398021905,1765296652921,-151.0,0.00019,2]
[398021906,1765296652932,-151.0,0.00019,2]
[398021907,1765296652942,-151.0,0.00019,2]
[398021908,1765296652952,-151.0,0.00019,2]
[398021909,1765296652962,-151.0,0.00019,2]
[398021910,1765296652972,-151.0,0.00019,2]
[398021911,1765296652982,-151.0,0.00019,2]
[398021912,1765296652992,-151.0,0.00019,2]
[398021913,1765296653005,-151.0,0.00019,2]
[398021914,1765296653016,-151.0,0.00019,2]
[398021915,1765296653026,-151.0,0.00019,2]
[398021916,1765296653036,-151.0,0.00019,2]
[398021917,1765296653047,-151.0,0.00019,2]
[398021918,1765296653056,-151.0,0.00019,2]
[398021919,1765296653067,-151.0,0.00019,2]
[398021920,1765296653076,-151.0,0.00019,2]
[398021921,1765296653087,-151.0,0.00019,2]
[398021922,1765296653097,-151.0,0.00019,2]
[398021923,1765296653108,-198.318029,0.00019,2]
[398021924,1765296653118,-176.812868,0.00019,2]
[398021925,1765296653128,-176.812868,0.00019,2]
[398021926,1765296653138,-176.812868,0.00019,2]
[398021927,1765296653149,-176.812868,0.00019,2]
[398021928,1765296653159,-176.812868,0.00019,2]
[398021929,1765296653169,-176.812868,0.00019,2]
[398021930,1765296653179,-176.812868,0.00019,2]
[398021931,1765296653190,-176.812868,0.00019,2]
[398021932,1765296653200,-151.0,0.00019,2]
[398021933,1765296653211,-151.0,0.00019,2]
[398021934,1765296653221,-151.0,0.00019,2]
[398021935,1765296653231,-151.0,0.00019,2]
[398021936,1765296653241,-151.0,0.00019,2]
[398021937,1765296653253,-151.0,0.00019,2]
[398021938,1765296653262,-151.0,0.00019,2]
[398021939,1765296653272,-151.0,0.00019,2]
[398021940,1765296653283,-151.0,0.00019,2]
[398021941,1765296653293,-151.0,0.00019,2]
[398021942,1765296653310,-151.0,0.00019,2]
[398021943,1765296653322,-151.0,0.00019,2]
[398021944,1765296653332,-151.0,0.00019,2]
[398021945,1765296653344,-151.0,0.00019,2]
[398021946,1765296653354,-151.0,0.00019,2]
[398021947,1765296653365,-151.0,0.00019,2]
[398021948,1765296653375,-151.0,0.00019,2]
[398021949,1765296653385,-151.0,0.00019,2]
[398021950,1765296653395,-287.715144,0.00019,2]
[398021951,1765296653405,-151.0,0.00019,2]
[398021952,1765296653415,-151.0,0.00019,2]
[398021953,1765296653425,-151.0,0.00019,2]
[398021954,1765296653436,-151.0,0.00019,2]
[398021955,1765296653457,-151.0,0.00019,2]
[398021956,1765296653470,-151.0,0.00019,2]
[398021957,1765296653482,-151.0,0.00019,2]
[398021958,1765296653493,-160.65791,0.00019,2]
[398021959,1765296653505,-151.0,0.00019,2]
[398021960,1765296653516,-151.0,0.00019,2]
[398021961,1765296653527,-262.534051,0.00019,2]
[398021962,1765296653538,-151.0,0.00019,2]
[398021963,1765296653549,-151.0,0.00019,2]
[398021964,1765296653560,-151.0,0.00019,2]
[398021965,1765296653571,-151.0,0.00019,2]
[398021966,1765296653581,-151.0,0.00019,2]
[398021967,1765296653591,-151.0,0.00019,2]
[398021968,1765296653602,-151.0,0.00019,2]
[398021969,1765296653614,-151.0,0.00019,2]
[398021970,1765296653624,-151.0,0.00019,2]
[398021971,1765296653635,-151.0,0.00019,2]
[398021972,1765296653646,-151.0,0.00019,2]
[398021973,1765296653657,-151.0,0.00019,2]
[398021974,1765296653667,-151.0,0.00019,2]
[398021975,1765296653678,-151.0,0.00019,2]
[398021976,1765296653690,-151.0,0.00019,2]
[398021977,1765296653701,-151.0,0.00019,2]
[398021978,1765296653712,-406.016222,0.00019,2]
[398021979,1765296653723,-406.016222,0.00019,2]
[398021980,1765296653733,-406.016222,0.00019,2]